bitfinex/quotes_SOLUSD_20260102
["timestamp","ask_amount","ask_price","bid_price","bid_amount"]
[1767381973971,0.69384449,131.55,131.52,8.261212]
[1767381974350,5.51529,131.61,131.55,0.65785519]
[1767381974676,0.69384449,131.61,131.57,0.65785519]
[1767381974862,3.11876232,131.59,131.55,0.65785519]
[1767381976066,3.11876232,131.59,131.56,7.60109455]
[1767381976366,3.11876232,131.59,131.56,8.25894974]
[1767381978289,3.11876232,131.58,131.55,8.25929556]
[1767381978457,3.11876232,131.57,131.54,21.48199188]
[1767381978786,3.11876232,131.57,131.54,8.25984707]
[1767381978983,2.42491783,131.57,131.54,0.65785519]
[1767381979189,3.11876232,131.58,131.54,0.65785519]
[1767381979361,3.11876232,131.58,131.56,7.60109455]
[1767381980191,3.11876232,131.58,131.55,8.2592625]
[1767381980359,2.42491783,131.57,131.55,8.2592625]
[1767381980678,0.69384449,131.55,131.5,7.60434852]
[1767381980881,0.69384449,131.54,131.5,8.26220371]
[1767381981085,3.78852976,131.53,131.5,8.26220371]
[1767381981391,3.78852976,131.54,131.51,0.65785519]
[1767381981686,3.78852976,131.53,131.5,8.26220371]
[1767381981861,0.69384449,131.54,131.5,8.26220371]
[1767381982188,0.69384449,131.54,131.51,8.26159986]
[1767381982376,4.48237425,131.54,131.51,8.26159986]
[1767381983283,0.69384449,131.54,131.51,8.26159986]
[1767381983460,3.78852976,131.53,131.51,8.26159986]
[1767381983662,3.78852976,131.53,131.5,0.65785519]
[1767381983957,3.78852976,131.53,131.5,8.26238012]
[1767381985886,3.78852976,131.54,131.51,0.65785519]
[1767381987090,4.48237425,131.55,131.51,0.65785519]
[1767381987767,4.47528901,131.54,131.51,7.60360988]
[1767381988382,4.47528901,131.54,131.51,8.26030534]
[1767381989989,4.44440014,131.52,131.49,8.29633106]
[1767381990365,0.65587038,131.55,131.5,0.69118999]
[1767381990572,0.65587038,131.56,131.5,0.69118999]
[1767381990893,4.44440014,131.55,131.5,0.69118999]
[1767381991580,0.65587038,131.54,131.51,7.60398448]
[1767381991805,0.65587038,131.54,131.51,8.29517447]
[1767381992003,0.62587038,131.54,131.51,8.29517447]
[1767381992182,3.78852976,131.55,131.51,8.29517447]
[1767381993997,4.44440014,131.55,131.51,8.29517447]
[1767381995283,4.44440014,131.54,131.51,8.29517447]
[1767381996009,0.65587038,131.53,131.49,0.69118999]
[1767381996179,4.44440014,131.53,131.5,0.69118999]
[1767381996378,0.65587038,131.53,131.5,0.69118999]
[1767381997891,4.44440014,131.53,131.5,0.69118999]
[1767381998096,0.65587038,131.53,131.5,8.2954161]
[1767381998303,4.44440014,131.53,131.5,8.2954161]
[1767382002215,0.65587038,131.52,131.48,37.37318531]
[1767382002422,3.78852976,131.53,131.46,99.23318854]
[1767382002423,4.44440014,131.5,131.46,8.29759515]
[1767382002714,3.78852976,131.49,131.46,0.69118999]
[1767382003097,4.44440014,131.5,131.46,0.69118999]
[1767382003720,0.65587038,131.5,131.46,0.69118999]
[1767382004011,4.44440014,131.51,131.48,7.60571844]
[1767382004615,4.44440014,131.51,131.47,8.2972059]
[1767382004913,0.65587038,131.5,131.47,8.2972059]
[1767382005710,0.65587038,131.53,131.48,0.69118999]
[1767382005916,4.44440014,131.53,131.48,0.69118999]
[1767382007121,4.44440014,131.51,131.47,19.70693502]
[1767382007713,0.65587038,131.5,131.48,7.60550049]
[1767382008409,4.44440014,131.5,131.47,8.29717202]
[1767382008609,3.78852976,131.49,131.47,7.60598203]
[1767382008901,3.78852976,131.48,131.46,7.60671865]
[1767382009409,4.44440014,131.49,131.46,7.60671865]
[1767382010112,3.78852976,131.48,131.46,7.60671865]
[1767382010316,0.65587038,131.48,131.45,22.17849679]
[1767382010690,4.44440014,131.48,131.45,22.17849679]
[1767382011508,4.44440014,131.48,131.45,8.29849679]
[1767382012597,0.65587038,131.48,131.45,8.29849679]
[1767382014217,4.44440014,131.49,131.46,0.69118999]
[1767382016114,4.44440014,131.49,131.46,8.29787052]
[1767382016294,4.44440014,131.48,131.45,8.29838344]
[1767382017622,4.44440014,131.48,131.46,7.60686625]
[1767382017817,0.65587038,131.48,131.46,7.60686625]
[1767382018599,0.65587038,131.48,131.45,0.69118999]
[1767382018795,32.88895554,131.52,131.44,13.88]
[1767382018796,0.65587038,131.49,131.44,13.88]
[1767382019000,4.44440014,131.48,131.44,13.88]
[1767382020800,7.60629801,131.47,131.44,14.52350443]
[1767382021114,3.78852976,131.46,131.44,14.52350443]
[1767382021498,3.78852976,131.47,131.45,0.64350443]
[1767382021699,11.39468661,131.48,131.45,0.64350443]
[1767382021900,3.78852976,131.47,131.45,0.64350443]
[1767382023024,11.39496477,131.47,131.45,0.64350443]
[1767382023527,11.39496477,131.47,131.44,14.52350443]
[1767382024028,3.78852976,131.46,131.44,14.52350443]
[1767382025005,7.60643501,131.47,131.44,14.52350443]
[1767382025318,11.39496477,131.47,131.44,14.52350443]
[1767382025941,3.78852976,131.47,131.44,14.52350443]
[1767382026933,11.39491408,131.47,131.44,14.52350443]
[1767382029529,3.78852976,131.47,131.44,14.52350443]
[1767382030832,8.32195367,131.48,131.44,14.52350443]
[1767382031027,3.78852976,131.47,131.44,14.52350443]
[1767382031731,3.78852976,131.46,131.44,14.52350443]
[1767382033031,8.3219308,131.48,131.45,0.64350443]
[1767382033238,3.78852976,131.47,131.45,0.64350443]
[1767382033732,3.78852976,131.47,131.44,13.88]
[1767382034437,4.50458728,131.46,131.44,13.88]
[1767382034618,3.78852976,131.46,131.44,13.88]
[1767382036225,12.1110152,131.47,131.44,13.88]
[1767382036713,0.71605752,131.46,131.44,13.88]
[1767382038616,8.32306568,131.46,131.44,13.88]
[1767382038841,7.60700816,131.46,131.44,13.88]
[1767382039826,8.32306568,131.46,131.44,13.88]
[1767382041140,3.14482823,131.45,131.44,13.88]
[1767382042242,3.14482823,131.45,131.41,69.00948427]
[1767382042445,8.3236303,131.45,131.42,13.88]
[1767382043049,0.71605752,131.44,131.41,0.2]
[1767382043247,0.71605752,131.41,131.39,0.2]
[1767382043424,3.14482823,131.41,131.39,0.2]
[1767382043824,3.14482823,131.42,131.39,0.2]
[1767382044040,0.71605752,131.44,131.39,7.81084308]
[1767382044357,0.71605752,131.43,131.39,7.81084308]
[1767382046031,3.14482823,131.43,131.39,7.81084308]
[1767382049765,10.71113366,131.44,131.39,7.81084308]
[1767382049934,0.6739665,131.43,131.39,7.81084308]
[1767382051748,13.88,131.48,131.39,7.81084308]
[1767382051749,0.6739665,131.46,131.4,16.30877071]
[1767382052349,3.10273721,131.46,131.4,16.30877071]
[1767382053159,10.70964623,131.46,131.41,7.60977094]
[1767382053339,0.6739665,131.45,131.41,7.60977094]
[1767382056159,3.10273721,131.45,131.41,7.60977094]
[1767382056338,10.71035425,131.45,131.41,7.60977094]
[1767382056538,3.10273721,131.44,131.4,21.49022529]
[1767382057163,0.6739665,131.43,131.4,13.88]
[1767382058163,0.6739665,131.43,131.4,21.49032281]
[1767382060765,7.60776109,131.45,131.4,21.49032281]
[1767382060766,0.6739665,131.44,131.4,21.49032281]
[1767382062471,8.28106238,131.46,131.4,42.94496871]
[1767382062646,8.28106238,131.46,131.4,40.516198]
[1767382062852,3.10273721,131.45,131.4,21.49032281]
[1767382064263,8.12003415,131.44,131.4,21.52032281]
[1767382064468,10.03631278,131.45,131.4,21.52032281]
[1767382064646,5.69146898,131.44,131.4,21.52032281]
[1767382064852,10.03631278,131.45,131.4,21.52032281]
[1767382066067,0.6739665,131.44,131.4,21.52032281]
[1767382066667,0.6739665,131.43,131.4,21.49032281]
[1767382068673,0.6739665,131.42,131.4,13.88]
[1767382068847,0.6739665,131.41,131.39,7.81077309]
[1767382069450,2.42877071,131.43,131.39,7.81077309]
[1767382069451,0.6739665,131.42,131.39,7.81077309]
[1767382070176,8.28226814,131.44,131.4,0.69163295]
[1767382070350,0.6739665,131.44,131.41,0.69163295]
[1767382070552,0.6739665,131.43,131.4,8.30186991]
[1767382070752,0.6739665,131.43,131.4,0.69163295]
[1767382071172,0.6739665,131.43,131.39,0.2]
[1767382071473,3.10273721,131.43,131.39,0.89163295]
[1767382071654,0.6739665,131.43,131.4,7.61005444]
[1767382071857,0.6739665,131.43,131.4,8.30168739]
[1767382072268,0.6739665,131.43,131.4,7.61005444]
[1767382072472,3.10273721,131.42,131.39,8.50215296]
[1767382072774,0.6739665,131.42,131.39,8.50215296]
[1767382073474,0.6739665,131.43,131.4,0.69163295]
[1767382074779,0.6739665,131.43,131.4,8.30167217]
[1767382076918,0.6739665,131.45,131.41,0.69163295]
[1767382077062,0.6739665,131.44,131.41,0.69163295]
[1767382077775,3.10273721,131.45,131.41,0.69163295]
[1767382077980,0.6739665,131.44,131.41,0.69163295]
[1767382078475,3.10273721,131.45,131.41,0.69163295]
[1767382078683,0.6739665,131.45,131.41,0.69163295]
[1767382079585,0.6739665,131.45,131.41,22.20097292]
[1767382079885,0.6739665,131.45,131.42,0.70372199]
[1767382081181,0.68313272,131.44,131.41,22.21306196]
[1767382081487,3.11190343,131.43,131.41,13.9]
[1767382081984,0.68313272,131.43,131.41,13.9]
[1767382082483,0.68313272,131.41,131.39,14.1]
[1767382082666,0.68313272,131.4,131.39,0.2]
[1767382082994,0.68313272,131.42,131.39,0.2]
[1767382083290,3.11190343,131.41,131.39,0.2]
[1767382084361,0.68313272,131.4,131.39,0.2]
[1767382086266,3.11190343,131.4,131.37,55.94639715]
[1767382087469,3.11190343,131.4,131.37,48.33458604]
[1767382087470,2.86126931,131.39,131.37,48.33458604]
[1767382087665,0.4324986,131.39,131.37,48.33458604]
[1767382087870,2.86126931,131.39,131.37,48.33458604]
[1767382088491,2.86126931,131.39,131.37,34.43458604]
[1767382088692,0.4324986,131.39,131.37,34.43458604]
[1767382088895,10.72249846,131.4,131.37,34.43458604]
[1767382089193,3.11190343,131.4,131.37,42.75035444]
[1767382089773,0.68313272,131.4,131.37,42.75035444]
[1767382089978,3.11190343,131.4,131.37,42.75035444]
[1767382090490,3.11190343,131.41,131.37,42.75035444]
[1767382090880,2.86126931,131.42,131.38,0.70372199]
[1767382092092,2.86126931,131.42,131.38,8.31470492]
[1767382092477,2.42877071,131.41,131.38,8.31470492]
[1767382093286,2.42877071,131.41,131.38,22.21470492]
[1767382093999,3.11190343,131.43,131.39,0.70372199]
[1767382094379,0.819393,131.44,131.4,0.70372199]
[1767382094587,0.819393,131.44,131.42,0.70372199]
[1767382094588,0.789393,131.44,131.42,0.70372199]
[1767382095275,3.11190343,131.46,131.42,0.70372199]
[1767382095480,3.11190343,131.47,131.42,0.70372199]
[1767382095690,0.68313272,131.47,131.42,0.70372199]
[1767382095876,3.11190343,131.47,131.44,0.70372199]
[1767382096081,0.4324986,131.46,131.43,7.60861294]
[1767382096281,2.86126931,131.46,131.43,8.31233493]
[1767382096483,2.42877071,131.46,131.43,8.31233493]
[1767382097205,3.11190343,131.47,131.43,8.31233493]
[1767382098285,3.11190343,131.49,131.45,0.70372199]
[1767382098505,2.42877071,131.49,131.45,0.70372199]
[1767382098709,3.11190343,131.5,131.45,0.70372199]
[1767382098899,8.54713389,131.49,131.45,0.70372199]
[1767382099101,8.79526167,131.48,131.45,0.70372199]
[1767382099429,0.68062638,131.48,131.45,0.70372199]
[1767382099593,3.11190343,131.49,131.45,0.70372199]
[1767382100406,3.11190343,131.49,131.45,8.31074676]
[1767382100716,0.68313272,131.49,131.45,8.31074676]
[1767382101011,3.11190343,131.49,131.45,8.31074676]
[1767382102617,4.47646551,131.49,131.45,8.31074676]
[1767382102916,0.68313272,131.49,131.45,8.31074676]
[1767382103282,4.47646551,131.49,131.45,8.31074676]
[1767382103497,0.68313272,131.49,131.45,8.31074676]
[1767382103807,4.47646551,131.49,131.45,8.31074676]
[1767382104219,0.68313272,131.49,131.46,8.31053215]
[1767382104405,0.68313272,131.52,131.48,0.70372199]
[1767382104583,0.68062638,131.54,131.5,0.70372199]
[1767382104778,0.68062638,131.54,131.51,0.70372199]
[1767382105190,4.47395917,131.54,131.5,14.58372199]
[1767382106307,12.0764565,131.54,131.5,14.58372199]
[1767382106497,12.0764565,131.54,131.5,22.18818401]
[1767382107108,4.47395917,131.54,131.5,22.18818401]
[1767382107609,0.68062638,131.54,131.5,22.18818401]
[1767382107811,4.47395917,131.54,131.5,22.18818401]
[1767382108008,4.22831267,131.53,131.5,13.88]
[1767382108196,3.79333279,131.51,131.5,13.88]
[1767382109019,4.23074457,131.51,131.47,0.67832063]
[1767382110088,4.23074457,131.51,131.48,7.60565467]
[1767382110293,3.89233279,131.52,131.48,8.3169972]
[1767382111310,3.79333279,131.51,131.48,8.3169972]
[1767382114217,3.89469306,131.5,131.47,7.60598931]
[1767382114508,4.12602378,131.49,131.46,7.60657225]
[1767382114897,4.12602378,131.49,131.46,8.31791478]
[1767382115807,3.79333279,131.48,131.46,7.60657225]
[1767382116585,4.12602378,131.49,131.46,7.60657225]
[1767382118317,11.73501308,131.51,131.47,0.71134253]
[1767382118692,3.79333279,131.5,131.47,8.31742673]
[1767382118892,3.79333279,131.5,131.47,0.71134253]
[1767382119104,3.79333279,131.5,131.47,8.317504]
[1767382121902,7.94168029,131.51,131.47,8.317504]
[1767382122229,3.89233279,131.52,131.49,0.71134253]
[1767382122401,4.12836045,131.51,131.48,8.31655563]
[1767382123121,3.79333279,131.51,131.48,8.31655563]
[1767382124720,3.79333279,131.5,131.46,0.71134253]
[1767382124918,3.79333279,131.5,131.47,7.60589673]
[1767382125224,3.79333279,131.5,131.47,8.31723926]
[1767382125822,0.099,131.51,131.47,8.31723926]
[1767382126316,3.79333279,131.5,131.47,8.31723926]
[1767382126498,3.89469306,131.49,131.46,8.31797252]
[1767382126693,3.79333279,131.49,131.46,8.31797252]
[1767382129031,7.94162958,131.51,131.47,0.71134253]
[1767382129220,3.89233279,131.5,131.47,0.71134253]
[1767382130225,3.89233279,131.5,131.47,8.3176168]
[1767382132223,3.89233279,131.5,131.47,0.71134253]
[1767382132420,3.79333279,131.48,131.45,8.31847981]
[1767382132617,0.33502766,131.49,131.45,8.31847981]
[1767382132923,3.79333279,131.48,131.45,8.31847981]
[1767382134004,0.33741178,131.53,131.48,0.71134253]
[1767382134317,5.6658511,131.52,131.49,7.60514107]
[1767382134500,3.89233279,131.52,131.49,7.60514107]
[1767382134927,3.89233279,131.52,131.49,8.3164836]
[1767382135729,3.89233279,131.52,131.48,8.31678961]
[1767382136332,9.80087931,131.51,131.47,8.31738902]
[1767382136526,4.12836045,131.51,131.48,0.71134253]
[1767382136830,3.79333279,131.53,131.49,0.71134253]
[1767382137009,0.33741178,131.54,131.49,0.71134253]
[1767382137336,3.79333279,131.5,131.47,0.71134253]
[1767382137512,3.79333279,131.51,131.47,0.71134253]
[1767382138248,3.79333279,131.51,131.46,3.79333279]
[1767382138249,4.13074457,131.52,131.49,0.71134253]
[1767382138532,4.13074457,131.53,131.49,8.31611021]
[1767382138738,5.67937133,131.52,131.49,8.31611021]
[1767382139040,4.13074457,131.53,131.49,8.31611021]
[1767382139238,5.67906191,131.52,131.49,8.31611021]
[1767382139439,4.13074457,131.53,131.49,8.31611021]
[1767382139738,5.68210916,131.52,131.49,8.31611021]
[1767382139937,4.13074457,131.53,131.49,8.31611021]
[1767382140239,9.47544195,131.52,131.49,0.71134253]
[1767382140414,5.68210916,131.51,131.49,0.71134253]
[1767382140615,3.79333279,131.52,131.49,8.31646174]
[1767382140817,5.68519574,131.51,131.49,8.31646174]
[1767382141017,3.79333279,131.52,131.49,8.31646174]
[1767382141314,5.68519574,131.51,131.49,8.31646174]
[1767382141514,4.13074457,131.53,131.49,8.31646174]
[1767382141711,5.68641868,131.52,131.49,8.31646174]
[1767382141910,5.68641868,131.51,131.49,8.31646174]
[1767382142116,4.13074457,131.53,131.49,8.31646174]
[1767382142317,5.68641868,131.52,131.49,8.31646174]
[1767382142518,5.68641868,131.51,131.49,8.31646174]
[1767382144026,9.47975147,131.51,131.48,0.66125263]
[1767382144215,11.73244558,131.51,131.48,0.66125263]
[1767382144629,3.79333279,131.5,131.47,0.66125263]
[1767382144821,9.48356574,131.49,131.46,8.26797443]
[1767382145026,3.79333279,131.49,131.46,8.26797443]
[1767382145327,3.89469306,131.5,131.46,8.26797443]
[1767382145635,5.69074813,131.49,131.46,8.26797443]
[1767382145833,3.89469306,131.5,131.46,8.26797443]
[1767382146034,5.690744,131.49,131.47,0.66125263]
[1767382146240,3.89469306,131.5,131.47,0.66125263]
[1767382146439,3.89469306,131.5,131.47,8.26750607]
[1767382146740,0.10136027,131.5,131.47,8.26750607]
[1767382148338,4.12836045,131.53,131.49,0.66125263]
[1767382148538,5.69163107,131.52,131.49,0.66125263]
[1767382148741,9.48496386,131.51,131.48,0.66125263]
[1767382148926,5.69163107,131.5,131.48,0.66125263]
[1767382149527,3.79333279,131.52,131.48,0.66125263]
[1767382150643,0.33741178,131.53,131.49,7.60514107]
[1767382150820,3.79333279,131.52,131.49,7.60514107]
[1767382151341,3.89233279,131.52,131.48,8.26676438]
[1767382151543,3.89233279,131.52,131.49,0.66125263]
[1767382154942,3.89233279,131.52,131.49,8.26633699]
[1767382155125,11.3958352,131.54,131.5,0.66125263]
[1767382155332,4.12836045,131.53,131.5,0.66125263]
[1767382155641,4.12836045,131.53,131.49,8.26633699]
[1767382156343,0.33269099,131.51,131.48,8.26671899]
[1767382156644,4.13074457,131.52,131.48,8.26671899]
[1767382158349,11.73425658,131.52,131.48,8.26671899]
[1767382159649,11.73425658,131.52,131.49,0.66125263]
[1767382160336,11.73425658,131.52,131.48,0.66125263]
[1767382161445,5.69373179,131.51,131.48,0.66125263]
[1767382161653,4.13074457,131.52,131.48,8.26655079]
[1767382161854,5.69373329,131.51,131.49,0.66125263]
[1767382162032,11.73328474,131.54,131.49,0.66125263]
[1767382162227,9.58605402,131.53,131.49,0.66125263]
[1767382162423,5.69372123,131.52,131.49,0.66125263]
[1767382162929,5.69372123,131.52,131.5,8.26581536]
[1767382163130,10.36610049,131.54,131.5,8.26581536]
[1767382163337,3.14244626,131.53,131.5,0.66125263]
[1767382163538,3.14244626,131.53,131.49,7.60494093]
[1767382163539,3.14244626,131.53,131.49,8.26619356]
[1767382163737,0.44189276,131.52,131.49,0.66125263]
[1767382165153,10.47216873,131.52,131.49,0.66125263]
[1767382166154,8.31918654,131.53,131.49,0.66125263]
[1767382166563,8.31918654,131.53,131.5,0.66125263]
[1767382175156,5.69589204,131.52,131.5,0.66125263]
[1767382175355,5.69589204,131.51,131.5,0.66125263]
[1767382175537,5.69589204,131.52,131.5,0.66125263]
[1767382175742,5.69589204,131.51,131.5,0.66125263]
[1767382176552,5.69589204,131.52,131.5,0.66125263]
[1767382176760,5.69589204,131.51,131.5,0.66125263]
[1767382177253,5.69589204,131.52,131.5,0.66125263]
[1767382177453,5.69589204,131.51,131.5,0.66125263]
[1767382177857,5.6968855,131.51,131.5,0.66125263]
[1767382186471,5.6968855,131.51,131.49,0.71887534]
[1767382186772,5.6968855,131.5,131.48,0.71887534]
[1767382187177,5.6968855,131.5,131.47,0.71887534]
[1767382187178,6.3732365,131.5,131.47,0.71887534]
[1767382187358,0.67834213,131.5,131.47,0.71887534]
[1767382188176,0.67834213,131.5,131.46,83.40555341]
[1767382189103,0.47922895,131.49,131.46,61.2]
[1767382189394,0.676351,131.48,131.46,61.2]
[1767382189678,0.676351,131.48,131.45,8.32605763]
[1767382190271,0.48120017,131.49,131.46,0.71887534]
[1767382190957,0.48120017,131.49,131.45,10.75244844]
[1767382191158,0.67439949,131.48,131.45,0.71887534]
[1767382191461,0.67439949,131.48,131.45,8.32624327]
[1767382192661,5.69864337,131.47,131.45,0.71887534]
[1767382192867,0.67439949,131.48,131.45,0.71887534]
[1767382193068,5.699266,131.47,131.45,8.32629607]
[1767382193377,7.60546673,131.49,131.46,0.71887534]
[1767382193552,5.69738763,131.48,131.46,0.71887534]
[1767382193754,7.60546673,131.49,131.46,0.71887534]
[1767382193957,5.69738315,131.48,131.46,0.71887534]
[1767382194164,7.60546673,131.49,131.46,0.71887534]
[1767382194354,5.69738315,131.48,131.46,0.71887534]
[1767382194557,7.60546673,131.49,131.46,0.71887534]
[1767382194783,5.69609292,131.48,131.46,0.71887534]
[1767382194969,7.60546673,131.49,131.46,0.71887534]
[1767382195170,5.69609441,131.48,131.46,0.71887534]
[1767382195370,8.28380886,131.49,131.46,0.71887534]
[1767382195581,5.69497097,131.48,131.46,0.71887534]
[1767382195768,8.28380886,131.49,131.46,0.71887534]
[1767382196070,5.69497246,131.48,131.46,0.71887534]
[1767382196270,8.28380886,131.49,131.46,0.71887534]
[1767382198480,0.67834213,131.49,131.46,8.32575045]
[1767382198683,0.44952895,131.5,131.47,0.71887534]
[1767382200288,8.05412108,131.5,131.47,0.71887534]
[1767382200685,0.44952895,131.5,131.47,8.32515878]
[1767382201184,3.14742324,131.54,131.49,0.69161999]
[1767382201390,5.69090502,131.53,131.5,0.69161999]
[1767382201589,5.69090502,131.52,131.5,0.69161999]
[1767382201777,3.14742324,131.54,131.5,0.69161999]
[1767382201778,0.40726555,131.53,131.5,0.69161999]
[1767382201980,5.69047996,131.52,131.5,0.69161999]
[1767382202177,10.43659218,131.53,131.49,0.69161999]
[1767382202490,6.40846382,131.52,131.49,0.69161999]
[1767382202664,0.71789476,131.52,131.49,8.2967308]
[1767382203186,0.71789476,131.52,131.49,0.69161999]
[1767382203386,6.10086872,131.51,131.48,0.69161999]
[1767382203692,2.83676265,131.51,131.48,0.69161999]
[1767382204080,0.41341631,131.49,131.46,0.69161999]
[1767382204269,8.01858833,131.49,131.46,0.69161999]
[1767382205297,10.7522359,131.5,131.46,0.69161999]
[1767382205499,5.6910382,131.49,131.46,0.69161999]
[1767382205674,10.7522359,131.5,131.46,0.69161999]
[1767382205971,5.6910382,131.49,131.46,0.69161999]
[1767382206172,8.32584509,131.5,131.46,0.69161999]
[1767382206383,0.72103243,131.54,131.46,7.60678046]
[1767382206567,0.72103243,131.53,131.49,2.42639081]
[1767382206996,0.72103243,131.55,131.5,2.42639081]
[1767382207185,0.69103243,131.55,131.51,0.03]
[1767382207796,0.69103243,131.55,131.5,2.45639081]
[1767382208298,7.60178868,131.55,131.5,7.63435623]
[1767382208499,7.60178868,131.55,131.5,10.06074704]
[1767382209196,0.72103243,131.54,131.5,10.06074704]
[1767382209498,0.72103243,131.53,131.5,10.03074704]
[1767382210082,0.72103243,131.53,131.49,0.03]
[1767382210287,0.72103243,131.53,131.5,7.60453223]
[1767382210490,0.69103243,131.53,131.5,7.60453223]
[1767382211205,0.69103243,131.53,131.5,2.42639081]
[1767382212684,0.66103243,131.53,131.5,2.42639081]
[1767382212886,0.66103243,131.53,131.49,7.63514107]
[1767382213080,0.66103243,131.53,131.49,10.06153188]
[1767382213384,0.66103243,131.53,131.5,2.42639081]
[1767382213684,7.60190148,131.55,131.5,10.0307241]
[1767382213898,23.90776127,131.56,131.51,0.09]
[1767382214291,23.90776127,131.56,131.51,2.51639081]
[1767382214705,0.72103243,131.55,131.51,10.12021093]
[1767382215001,22.20240289,131.56,131.52,0.09]
[1767382215313,0.72103243,131.56,131.53,2.42639081]
[1767382215487,0.72103243,131.56,131.52,2.51639081]
[1767382216702,8.32213918,131.56,131.52,2.51639081]
[1767382216900,0.72103243,131.55,131.52,0.09]
[1767382217108,0.72103243,131.55,131.52,10.11975429]
[1767382217493,0.72103243,131.55,131.52,7.69336348]
[1767382220491,0.72103243,131.55,131.52,10.11975429]
[1767382221018,0.82103243,131.57,131.53,2.51639081]
[1767382221382,0.82103243,131.57,131.54,2.51639081]
[1767382222101,0.82103243,131.57,131.54,2.42639081]
[1767382222302,0.82103243,131.57,131.54,10.11864107]
[1767382222817,0.82103243,131.57,131.54,10.02864107]
[1767382223023,0.72103243,131.56,131.53,7.60266946]
[1767382223312,0.72103243,131.56,131.52,10.11955491]
[1767382223527,0.72103243,131.56,131.52,7.6031641]
[1767382224522,0.72103243,131.55,131.52,7.6031641]
[1767382226900,0.72103243,131.55,131.52,3.78919301]
[1767382228018,0.72481327,131.54,131.51,7.60398448]
[1767382228194,0.72481327,131.55,131.51,11.48317749]
[1767382228402,0.72481327,131.55,131.52,3.78919301]
[1767382228603,0.72481327,131.55,131.51,11.48317749]
[1767382229618,0.71002596,131.53,131.5,7.60433296]
[1767382233328,0.71002596,131.53,131.5,7.69433296]
[1767382233540,0.71002596,131.54,131.51,3.78919301]
[1767382233702,0.68002596,131.54,131.51,3.87919301]
[1767382234124,0.68002596,131.54,131.51,0.09]
[1767382234333,0.1,131.57,131.52,3.90919301]
[1767382234506,0.1,131.57,131.53,3.90919301]
[1767382234710,0.1,131.57,131.53,0.12]
[1767382235017,0.1,131.57,131.52,3.90919301]
[1767382235238,0.1,131.57,131.51,13.88]
[1767382235239,0.1,131.57,131.54,3.90919301]
[1767382235929,0.1,131.57,131.55,3.90919301]
[1767382236422,0.1,131.57,131.55,11.51034468]
[1767382236917,0.81002596,131.59,131.55,7.72115167]
[1767382237122,0.1,131.63,131.6,0.72165273]
[1767382237341,8.45013837,131.64,131.55,7.60115167]
[1767382237342,0.1,131.64,131.61,0.72165273]
[1767382237507,3.96618001,131.67,131.63,4.51084574]
[1767382237833,11.48301834,131.69,131.64,0.72165273]
[1767382238236,7.69382533,131.69,131.64,3.78919301]
[1767382238534,11.48301834,131.69,131.64,3.78919301]
[1767382238732,11.48301834,131.69,131.63,8.31835769]
[1767382238906,11.48301834,131.69,131.63,12.1075507]
[1767382239109,0.71002596,131.66,131.63,8.31835769]
[1767382239310,0.71002596,131.66,131.64,7.59647523]
[1767382239942,0.81002596,131.65,131.62,4.51084574]
[1767382240227,0.1,131.65,131.62,4.51084574]
[1767382240732,0.1,131.65,131.62,12.10824428]
[1767382242111,0.81002596,131.65,131.62,12.10824428]
[1767382243730,0.81002596,131.65,131.62,11.38659155]
[1767382243908,0.81002596,131.65,131.61,17.66919301]
[1767382244109,0.81002596,131.65,131.61,25.26682658]
[1767382244632,0.81002596,131.65,131.61,21.47763357]
[1767382244826,0.71002596,131.64,131.61,21.47763357]
[1767382245220,0.71002596,131.64,131.61,7.59763357]
[1767382246034,0.81002596,131.65,131.61,12.10847931]
[1767382246218,0.81002596,131.65,131.61,8.3192863]
[1767382246420,0.81002596,131.65,131.62,3.78919301]
[1767382246931,0.81002596,131.65,131.61,12.10847931]
[1767382248415,0.71002596,131.64,131.6,8.32039195]
[1767382248616,0.71002596,131.64,131.6,12.10958496]
[1767382248836,0.71002596,131.62,131.58,4.51084574]
[1767382249214,0.71002596,131.62,131.59,11.38843145]
[1767382249936,0.71002596,131.62,131.59,7.59923844]
[1767382250237,0.71002596,131.62,131.58,8.32124607]
[1767382250443,0.71002596,131.62,131.58,12.11043908]
[1767382250645,0.71002596,131.61,131.58,12.11043908]
[1767382251018,0.71002596,131.61,131.58,7.59959334]
[1767382252520,0.71002596,131.61,131.57,7.60036942]
[1767382252755,0.71002596,131.6,131.57,7.60036942]
[1767382254313,0.71002596,131.6,131.56,4.51084574]
[1767382254314,0.71002596,131.59,131.56,7.60082569]
[1767382254514,0.71002596,131.59,131.56,8.32247842]
[1767382254717,4.49921897,131.59,131.56,7.60082569]
[1767382255249,0.71002596,131.59,131.56,7.60082569]
[1767382257241,0.71002596,131.61,131.58,0.72165273]
[1767382257460,0.71002596,131.62,131.58,4.51084574]
[1767382258119,0.71002596,131.62,131.59,0.72165273]
[1767382258743,0.71002596,131.62,131.58,3.78919301]
[1767382258744,0.71002596,131.62,131.58,12.11031214]
[1767382259220,0.71002596,131.62,131.59,7.599291]
[1767382259937,0.71002596,131.62,131.58,12.11034248]